bitfinex-derivatives/quotes_SOLF0:USTF0_20250319
["timestamp","ask_amount","ask_price","bid_price","bid_amount"]
[1742411247696,0.04747405,133.6,133.58,0.04742367]
[1742411247892,0.04747405,133.6,133.54,7.4872]
[1742411248097,36.0,133.59,133.52,36.0]
[1742411248392,4.0241,133.58,133.52,36.0]
[1742411248987,0.05571065,133.56,133.49,36.0]
[1742411249193,4.0241,133.58,133.54,0.05527686]
[1742411249394,7.54205068,133.54,133.49,36.0]
[1742411249589,4.0241,133.58,133.49,36.0]
[1742411249792,0.05720215,133.53,133.5,0.04889537]
[1742411250695,38.73667888,133.52,133.44,9.84982838]
[1742411250893,36.0,133.51,133.44,9.84982838]
[1742411251795,0.04782739,133.49,133.46,0.05223315]
[1742411252396,0.04782739,133.49,133.44,9.84982838]
[1742411252699,7.4925,133.45,133.44,9.84982838]
[1742411253898,7.4931,133.44,133.43,164.83925892]
[1742411254497,0.04768611,133.46,133.43,0.04810463]
[1742411254702,0.04768611,133.46,133.44,36.0]
[1742411254893,0.04768611,133.46,133.44,74.73667888]
[1742411255701,0.04768611,133.46,133.43,0.04810463]
[1742411256404,0.04768611,133.46,133.36,29.54948514]
[1742411256596,7.4951,133.41,133.36,29.54948514]
[1742411256795,403.73667888,133.47,133.37,36.0]
[1742411256990,38.73667888,133.44,133.36,29.54948514]
[1742411257197,74.73667888,133.44,133.36,29.54948514]
[1742411257602,0.0498908,133.41,133.39,0.04851938]
[1742411258394,0.0498908,133.41,133.39,36.04851938]
[1742411259603,0.0498908,133.41,133.4,7.4953]
[1742411259997,36.0,133.49,133.42,7.4938]
[1742411260199,36.0,133.49,133.35,38.73667888]
[1742411260200,3.9646,133.5,133.43,36.0]
[1742411261004,3.9646,133.5,133.4,36.0]
[1742411261005,38.73667888,133.48,133.4,36.0]
[1742411261200,38.79108683,133.48,133.45,0.05434785]
[1742411261403,0.05440795,133.48,133.4,74.73667888]
[1742411261603,0.05440795,133.48,133.42,7.4939]
[1742411262205,0.05440795,133.48,133.43,7.4935]
[1742411262403,0.05440795,133.48,133.44,36.0]
[1742411262605,0.05440795,133.48,133.47,7.4914]
[1742411263504,8.3803,133.55,133.46,38.73667888]
[1742411263908,8.3803,133.55,133.49,38.73667888]
[1742411264118,7.4849,133.59,133.54,7.4874]
[1742411264511,38.73667888,133.61,133.53,36.0]
[1742411264809,7.53600794,133.58,133.55,0.05502859]
[1742411265010,0.05060794,133.58,133.55,0.05502859]
[1742411265710,7.53590794,133.58,133.55,0.05502859]
[1742411265910,0.05060794,133.58,133.55,0.05502859]
[1742411266213,0.05060794,133.58,133.55,38.79170747]
[1742411266415,0.05060794,133.58,133.57,7.4858]
[1742411266607,224.8,133.64,133.57,36.0]
[1742411266810,11.6108,133.66,133.59,46.22087888]
[1742411267107,4.1295,133.66,133.59,46.22087888]
[1742411267313,4.1295,133.66,133.61,7.4831]
[1742411267508,4.1295,133.66,133.61,36.0]
[1742411267711,0.05514548,133.65,133.62,0.04985695]
[1742411268008,0.05514548,133.65,133.58,35.98]
[1742411268406,38.73667888,133.64,133.53,38.73667888]
[1742411268608,35.98,133.63,133.54,35.98]
[1742411269113,0.05442398,133.6,133.57,0.05765745]
[1742411269311,0.05442398,133.6,133.54,35.98]
[1742411269510,8.27502398,133.6,133.51,35.98]
[1742411269812,8.2206,133.6,133.51,35.98]
[1742411270616,0.05484538,133.57,133.54,0.04857965]
[1742411271116,0.05484538,133.57,133.55,35.98]
[1742411271411,0.05484538,133.57,133.55,43.4664]
[1742411271818,0.05484538,133.57,133.56,38.73667888]
[1742411272413,0.05484538,133.57,133.55,35.98]
[1742411273007,0.05484538,133.57,133.54,0.04857965]
[1742411273394,7.4869,133.55,133.54,0.04857965]
[1742411273728,38.73667888,133.54,133.45,29.54948514]
[1742411274034,224.64,133.55,133.45,29.54948514]
[1742411274239,42.69647888,133.53,133.43,164.40194769]
[1742411274433,35.96,133.52,133.43,164.40194769]
[1742411274627,7.4906,133.49,133.43,164.40194769]
[1742411274832,0.04993486,133.49,133.46,0.05682483]
[1742411275234,0.04993486,133.49,133.46,36.01682483]
[1742411275730,7.4912,133.48,133.46,36.01682483]
[1742411275922,0.04993486,133.49,133.46,36.01682483]
[1742411276831,0.04993486,133.49,133.47,7.491]
[1742411277521,0.04993486,133.49,133.46,43.50852483]
[1742411277718,0.04993486,133.49,133.46,36.01682483]
[1742411278011,224.64,133.55,133.48,38.73667888]
[1742411278318,4.217,133.56,133.51,38.73667888]
[1742411278520,4.217,133.56,133.51,74.69667888]
[1742411279218,0.0564048,133.55,133.52,0.0558261]
[1742411279415,0.0564048,133.55,133.51,74.69667888]
[1742411279723,4.2461,133.61,133.54,38.73667888]
[1742411280021,4.2461,133.61,133.55,35.96]
[1742411280319,0.04923337,133.59,133.56,0.04801389]
[1742411280520,0.04923337,133.59,133.56,7.53401389]
[1742411280716,0.04923337,133.59,133.56,0.04801389]
[1742411281516,0.04923337,133.59,133.58,7.4852]
[1742411281721,3.9354,133.66,133.56,38.78469277]
[1742411281917,3.9354,133.66,133.59,38.73667888]
[1742411282227,3.9306,133.68,133.6,35.96]
[1742411282622,11.4106,133.68,133.6,35.96]
[1742411282823,0.05435472,133.65,133.63,0.04887863]
[1742411283023,0.05435472,133.65,133.64,35.94]
[1742411284425,3.9354,133.71,133.64,35.94]
[1742411284627,3.8666,133.74,133.66,38.73667888]
[1742411284924,224.62,133.75,133.64,35.94]
[1742411284925,224.62,133.75,133.64,39.3204]
[1742411285113,38.73667888,133.73,133.64,35.94]
[1742411285318,7.8603,133.72,133.65,38.73667888]
[1742411285515,3.9074,133.76,133.66,38.73667888]
[1742411285824,0.04831938,133.7,133.67,0.04947174]
[1742411286128,7.4772,133.73,133.68,35.94]
[1742411286322,0.0499481,133.7,133.68,35.94]
[1742411286624,3.9074,133.76,133.68,35.94]
[1742411286819,0.05185705,133.7,133.68,35.99428253]
[1742411287017,31.66553944,133.78,133.68,35.94]
[1742411287222,0.05660559,133.7,133.68,35.99150802]
[1742411287424,19.36833944,133.73,133.65,35.94]
[1742411287624,19.36833944,133.72,133.68,0.05127749]
[1742411287821,0.05541258,133.7,133.65,35.94]
[1742411288020,0.05541258,133.7,133.6,38.73667888]
[1742411288220,3.9652,133.71,133.63,38.73667888]
[1742411288419,19.36833944,133.75,133.63,38.73667888]
[1742411288622,384.36833944,133.77,133.66,38.73667888]
[1742411288819,384.36833944,133.77,133.67,35.92]
[1742411289024,0.04774868,133.73,133.7,0.05179228]
[1742411289528,19.36833944,133.71,133.61,35.92]
[1742411289725,19.36833944,133.69,133.57,46.03577888]
[1742411289928,19.36833944,133.69,133.58,35.92]
[1742411290132,8.1023,133.7,133.6,38.73667888]
[1742411290327,7.4808,133.66,133.58,35.92]
[1742411290629,0.04929962,133.66,133.64,0.05728442]
[1742411290825,7.53019962,133.66,133.62,35.92]
[1742411291024,7.53019962,133.66,133.57,46.03577888]
[1742411291025,0.04929962,133.66,133.64,0.0532652]
[1742411291217,8.1023,133.7,133.59,35.92]
[1742411291421,0.05084763,133.66,133.64,0.05502014]
[1742411292028,7.4813,133.65,133.64,0.05502014]
[1742411292929,7.4835,133.62,133.58,35.92]
[1742411293322,55.28833944,133.69,133.58,35.92]
[1742411293525,7.4798,133.68,133.62,38.73667888]
[1742411293726,224.5,133.71,133.63,35.92]
[1742411294030,0.05143545,133.68,133.66,0.05291256]
[1742411294429,3.88,133.76,133.67,35.92]
[1742411294630,7.4759,133.75,133.69,38.73667888]
[1742411294830,9.48754014,133.82,133.69,46.21557888]
[1742411295031,3.88,133.81,133.69,38.73667888]
[1742411295233,3.88,133.81,133.72,38.73667888]
[1742411295532,0.05037053,133.78,133.75,0.05603614]
[1742411296826,35.9,133.85,133.76,74.63667888]
[1742411297026,7.4716,133.83,133.76,74.63667888]
[1742411297229,80.98012633,133.86,133.79,38.73667888]
[1742411297431,7.4702,133.85,133.8,35.9]
[1742411297633,12.2494,133.87,133.8,35.9]
[1742411298032,7.4718,133.82,133.81,0.05612775]
[1742411298233,74.6882262,133.84,133.7,38.73667888]
[1742411298436,74.63667888,133.84,133.71,35.9]
[1742411299436,0.05271527,133.79,133.76,0.05667512]
[1742411303038,0.05271527,133.79,133.77,35.88]
[1742411304140,3.9462,133.85,133.77,35.88]
[1742411304644,38.73667888,133.91,133.79,38.73667888]
[1742411304942,3.9257,133.89,133.79,38.73667888]
[1742411305341,0.04932745,133.85,133.83,0.05358015]
[1742411305542,7.4679,133.89,133.83,35.88]
[1742411305735,3.8581,133.92,133.83,0.05135658]
[1742411305736,0.0473255,133.85,133.83,0.05135658]
[1742411305934,35.88,133.89,133.8,43.3526]
[1742411306133,0.05428376,133.85,133.83,0.05352047]
[1742411306535,0.05428376,133.85,133.83,7.52432047]
[1742411306733,0.05428376,133.85,133.83,0.05352047]
[1742411310139,7.4665,133.92,133.86,7.4692]
[1742411310344,2.27270161,133.94,133.84,74.59667888]
[1742411310534,74.59667888,133.93,133.84,35.86]
[1742411310737,7.4681,133.89,133.84,35.86]
[1742411311143,0.0503087,133.88,133.85,0.04785823]
[1742411311743,0.0503087,133.88,133.86,7.4691]
[1742411311945,0.0503087,133.88,133.85,0.04785823]
[1742411312344,2.27270161,133.94,133.85,0.04785823]
[1742411312540,2.27270161,133.94,133.84,74.59667888]
[1742411312541,41.00938049,133.94,133.84,74.59667888]
[1742411313040,41.00938049,133.94,133.84,35.86]
[1742411313352,0.05400253,133.9,133.88,0.05380337]
[1742411313844,7.4679,133.89,133.88,0.05380337]
[1742411314444,0.05400253,133.9,133.88,0.05380337]
[1742411315448,7.4679,133.89,133.88,0.05380337]
[1742411315843,38.79068141,133.9,133.81,38.73667888]
[1742411316050,7.4698,133.86,133.81,43.3122]
[1742411316250,4.0396,133.89,133.78,42.21237888]
[1742411316544,74.57667888,133.92,133.81,38.73667888]
[1742411317049,0.04779726,133.88,133.85,0.04761271]
[1742411318848,7.51659726,133.88,133.85,0.04761271]
[1742411319050,0.04779726,133.88,133.85,0.04761271]
[1742411319244,7.51649726,133.88,133.85,0.04761271]
[1742411319441,0.04779726,133.88,133.85,0.04761271]
[1742411319844,7.469,133.87,133.85,0.04761271]
[1742411320049,0.04779726,133.88,133.85,0.04761271]
[1742411320851,7.4695,133.87,133.85,0.04761271]
[1742411321052,0.04779726,133.88,133.85,0.04761271]
[1742411322447,0.04779726,133.88,133.86,35.82]
[1742411324942,0.04779726,133.88,133.87,7.469]
[1742411326654,0.04779726,133.88,133.86,43.2893]
[1742411326950,0.04779726,133.88,133.86,35.82]
[1742411327152,0.04779726,133.88,133.86,43.2893]
[1742411327452,0.04779726,133.88,133.86,35.82]
[1742411328251,0.04779726,133.88,133.87,7.469]
[1742411328451,0.04779726,133.88,133.86,35.82]
[1742411329250,0.04779726,133.88,133.87,7.469]
[1742411329456,2.27270161,133.94,133.86,267.36]
[1742411329646,2.27270161,133.94,133.91,38.73667888]
[1742411329851,2.27270161,133.94,133.92,35.8]
[1742411330153,2.27270161,133.94,133.93,7.4656]
[1742411330347,2.27270161,133.94,133.92,35.8]
[1742411330549,2.27270161,133.94,133.92,35.84933994]
[1742411331153,2.27270161,133.94,133.93,7.4656]
[1742411331552,2.27270161,133.94,133.92,35.84933994]
[1742411331850,2.27270161,133.94,133.93,7.4656]
[1742411332456,2.27270161,133.94,133.93,14.9256]
[1742411332653,0.04915848,133.95,133.94,7.4651]
[1742411332959,0.5,134.0,133.93,38.73667888]
[1742411333658,7.9621,134.0,133.93,38.73667888]
[1742411333855,0.04932704,133.98,133.95,0.0508915]
[1742411334052,0.04932704,133.98,133.96,74.53667888]
[1742411334253,0.04932704,133.98,133.95,0.0508915]
[1742411334557,38.78600592,133.98,133.87,74.51667888]
[1742411334851,8.3717,133.97,133.87,74.51667888]
[1742411335049,0.5,134.0,133.96,38.73667888]
[1742411335249,0.5,134.0,133.97,35.78]
[1742411335853,0.55072572,134.0,133.97,35.83306611]
[1742411336556,0.55072572,134.0,133.97,0.05306611]
[1742411337051,223.96,134.13,133.99,38.73667888]
[1742411337259,7.4554,134.12,134.03,38.73667888]
[1742411337450,223.96,134.13,134.06,38.73667888]
[1742411337753,4.2006,134.16,134.05,38.73667888]
[1742411337958,4.2006,134.16,134.06,35.78]
[1742411338258,0.05208243,134.12,134.09,0.05120618]
[1742411338455,231.46748243,134.12,134.09,0.05120618]
[1742411338655,224.01208243,134.12,134.09,0.05120618]
[1742411338954,224.01208243,134.12,134.05,35.78]
[1742411339157,224.01208243,134.12,134.03,38.73667888]
[1742411339360,7.4574,134.08,134.04,35.78]
[1742411339555,259.74,134.12,134.02,35.78]
[1742411339859,0.04978292,134.08,134.06,0.05561026]
[1742411340053,0.04978292,134.08,134.06,35.81561026]
[1742411340547,0.04978292,134.08,134.06,0.05561026]
[1742411342059,7.50748292,134.08,134.06,0.05561026]
[1742411342259,0.04978292,134.08,134.06,0.05561026]
[1742411342655,0.04978292,134.08,133.98,40.22943899]
[1742411342853,35.76,134.08,133.99,35.76]
[1742411343157,7.4604,134.03,133.95,44.09637888]
[1742411343350,7.4604,134.03,133.96,35.76]
[1742411343554,74.49667888,134.08,133.96,35.76]
[1742411343756,0.05308345,134.01,133.98,0.05191032]
[1742411343951,3.9516,134.07,133.96,35.76]
[1742411344157,0.04813005,134.01,133.99,7.4619]
[1742411344355,7.4588,134.06,134.0,35.76]
[1742411344659,3.9503,134.1,134.0,35.76]
[1742411344854,0.04852836,134.04,134.0,35.76]
[1742411345254,0.04852836,134.04,134.01,0.05292266]
[1742411346861,0.04852836,134.04,134.01,46.24960154]
[1742411347055,0.04852836,134.04,134.03,7.4601]
[1742411347453,0.04852836,134.04,134.01,38.78960154]
[1742411347654,3.9496,134.15,134.02,35.74]
[1742411347853,99.0,134.29,134.02,35.74]
[1742411347854,365.0,134.24,134.09,38.73667888]
[1742411348053,38.73667888,134.21,134.1,35.74]
[1742411348250,365.0,134.2,134.1,35.74]
[1742411348658,38.73667888,134.21,134.1,74.47667888]
[1742411348860,0.05448311,134.16,134.14,0.04780566]
[1742411349061,11.5451,134.23,134.15,35.74]
[1742411349257,0.04730369,134.16,134.15,35.74]
[1742411349463,4.0958,134.23,134.18,0.05541218]
[1742411349666,4.0958,134.23,134.19,43.1908]
[1742411349855,0.05661741,134.22,134.2,35.74]
[1742411350357,0.05661741,134.22,134.2,74.47667888]
[1742411350664,0.05661741,134.22,134.21,7.4501]
[1742411350859,4.0961,134.3,134.2,74.47667888]
[1742411351051,7.446,134.29,134.21,7.4498]
[1742411351257,4.0961,134.3,134.2,38.73667888]
[1742411351460,4.0961,134.3,134.21,35.74]
[1742411351663,7.4483,134.25,134.21,35.74]
[1742411351865,38.73667888,134.29,134.18,35.72]
[1742411352062,0.05488685,134.24,134.22,0.04961676]
[1742411352260,39.8361,134.3,134.22,0.04961676]
[1742411352261,7.449,134.23,134.22,0.04961676]
[1742411352559,0.05320847,134.24,134.22,0.04961676]
[1742411352862,4.0961,134.3,134.23,38.73667888]
[1742411353060,223.72,134.39,134.22,35.72]
[1742411353255,1.29621008,134.4,134.29,38.73667888]
[1742411353563,38.73667888,134.44,134.32,38.73667888]
[1742411353764,38.73667888,134.41,134.32,35.72]
[1742411353960,38.73667888,134.35,134.26,35.72]
[1742411354162,7.999,134.34,134.26,35.72]
[1742411354360,11.8641,134.34,134.29,0.05190413]
[1742411354561,0.0496097,134.31,134.29,0.05190413]
[1742411355266,0.0496097,134.31,134.23,35.68]
[1742411355666,74.46628858,134.31,134.23,35.68]
[1742411355965,0.0496097,134.31,134.22,38.73667888]
[1742411356155,38.73667888,134.33,134.24,35.68]
[1742411356359,0.05314786,134.3,134.27,0.05519669]
[1742411357162,7.4462,134.28,134.27,0.05519669]
[1742411357465,7.4462,134.28,134.19,38.73667888]
[1742411357466,74.46982674,134.3,134.21,35.68]
[1742411357664,74.41667888,134.3,134.2,35.68]
[1742411357966,11.8641,134.34,134.21,38.73667888]
[1742411358169,38.73667888,134.31,134.2,35.68]
[1742411358361,74.41667888,134.31,134.2,35.68]
[1742411358563,0.05507791,134.27,134.24,0.05236855]
[1742411358763,0.05507791,134.27,134.24,35.73236855]
[1742411359564,0.05507791,134.27,134.24,0.05236855]
[1742411359770,38.79175679,134.27,134.14,3.9007]
[1742411360063,38.73667888,134.24,134.12,74.41667888]
[1742411360269,7.4535,134.15,134.12,35.68]
[1742411360465,38.73667888,134.21,134.12,35.68]
[1742411360662,3.86,134.2,134.12,35.68]
[1742411360867,38.73667888,134.18,134.09,35.66]
[1742411361065,38.73667888,134.15,134.08,9.64915288]
[1742411361371,7.4567,134.09,134.08,9.64915288]
[1742411361570,223.5,134.15,134.08,9.64915288]
[1742411361571,35.66,134.12,134.08,9.64915288]
[1742411361764,43.1152,134.12,134.08,9.64915288]
[1742411361969,35.66,134.12,134.08,9.64915288]
[1742411362170,0.05023376,134.11,134.09,0.04814014]
[1742411362368,7.4567,134.09,134.08,9.64915288]
[1742411362568,3.9724,134.1,134.07,29.54948514]
[1742411362765,3.94233376,134.11,134.07,29.54948514]
[1742411362960,0.05023376,134.11,134.07,29.54948514]
[1742411363165,0.05023376,134.11,134.07,74.39667888]
[1742411363569,0.05023376,134.11,134.08,38.78791982]
[1742411363760,0.05023376,134.11,134.08,0.05124094]
[1742411365070,0.05023376,134.11,134.03,38.89887888]
[1742411365071,35.73023376,134.11,134.03,35.68]
[1742411365671,43.18623376,134.11,134.03,35.68]
[1742411366071,0.05023376,134.11,134.03,74.41667888]
[1742411366276,0.05023376,134.11,134.06,38.78519617]
[1742411366575,400.68,134.24,134.09,38.73667888]
[1742411366769,4.1508,134.24,134.13,38.73667888]
[1742411366970,4.1508,134.24,134.14,35.68]
[1742411367170,11.5992,134.24,134.16,38.73667888]
[1742411367475,223.62,134.27,134.16,38.73667888]
[1742411367678,0.05439103,134.21,134.19,0.05039236]
[1742411367975,227.7934,134.27,134.19,35.73039236]
[1742411368168,0.04769075,134.21,134.19,74.46707124]
[1742411368372,223.62,134.27,134.2,7.4506]
[1742411368566,223.62,134.27,134.22,38.68181579]
[1742411368771,4.1508,134.28,134.22,38.68181579]
[1742411369076,4.1508,134.28,134.19,74.41667888]
[1742411369276,39.8308,134.28,134.19,74.41667888]
[1742411369577,59.19913944,134.28,134.16,74.41667888]
[1742411369777,0.05237546,134.25,134.22,0.05557278]
[1742411369972,7.449,134.23,134.22,0.05557278]
[1742411370172,0.05237546,134.25,134.16,74.41667888]
[1742411370370,7.4502,134.21,134.16,35.68]
[1742411370574,19.36833944,134.26,134.16,35.68]
[1742411370575,35.66,134.24,134.16,35.68]
[1742411370774,35.66,134.24,134.16,74.41667888]
[1742411370976,223.58,134.25,134.19,7.4511]
[1742411371175,4.1508,134.28,134.2,35.66]
[1742411371372,0.0490362,134.23,134.22,46.18617888]
[1742411371579,4.0862,134.33,134.22,38.73667888]
[1742411371978,7.4441,134.32,134.22,38.73667888]
[1742411372178,4.0862,134.33,134.22,38.73667888]
[1742411372378,4.0862,134.33,134.2,35.66]
[1742411372379,4.0862,134.33,134.25,38.73667888]
[1742411372573,4.0862,134.33,134.26,35.66]
[1742411372770,0.05215141,134.3,134.28,0.05084935]
[1742411373079,0.05215141,134.3,134.23,35.66]
[1742411373275,0.05215141,134.3,134.19,74.39667888]
[1742411373476,55.02833944,134.31,134.19,74.39667888]
[1742411373677,62.47323944,134.31,134.21,7.4497]
[1742411373873,55.02833944,134.31,134.19,35.66]
[1742411374075,0.04758772,134.27,134.25,0.05499303]
[1742411374381,55.02833944,134.26,134.15,35.66]
[1742411374581,19.36833944,134.23,134.13,38.73667888]
[1742411374777,43.1096,134.22,134.13,38.73667888]
[1742411374977,35.66,134.22,134.13,38.73667888]
[1742411375381,0.05167379,134.19,134.16,0.05238926]
[1742411375778,0.05167379,134.19,134.11,29.54948514]
[1742411375779,7.4532,134.16,134.11,29.54948514]
[1742411376081,35.66,134.18,134.11,29.54948514]
[1742411376483,38.73667888,134.16,134.11,29.54948514]
[1742411376877,7.4551,134.12,134.11,23.15408514]
[1742411377181,35.66,134.14,134.12,0.05014521]
[1742411377382,35.66,134.14,134.11,23.15408514]
[1742411377978,0.05686042,134.15,134.11,23.15408514]
[1742411378176,35.66,134.14,134.11,23.15408514]
[1742411378381,43.1144,134.14,134.11,23.15408514]
[1742411378589,35.66,134.14,134.1,0.28822]
[1742411378785,35.66,134.14,134.03,74.39667888]
[1742411378976,7.4555,134.12,134.03,74.39667888]
[1742411379181,35.66,134.14,134.03,74.39667888]
[1742411379582,35.66,134.14,133.98,78.22427465]
[1742411379785,0.05091329,134.1,134.04,38.73667888]
[1742411380184,0.05091329,134.1,134.05,35.66]
[1742411381692,7.4577,134.08,134.02,35.66]
[1742411381890,35.66,134.09,134.02,35.66]
[1742411382191,0.05390943,134.06,134.02,35.66]
[1742411382387,0.05390943,134.06,134.04,7.4592]
[1742411382784,0.05390943,134.06,134.05,7.459]
[1742411382990,0.05390943,134.06,134.04,38.73667888]
[1742411384486,0.05390943,134.06,134.05,7.459]
[1742411384693,0.05390943,134.06,134.04,38.73667888]
[1742411385191,0.05390943,134.06,134.05,7.459]
[1742411385794,223.62,134.12,134.04,38.73667888]
[1742411385994,223.62,134.12,134.08,38.73667888]
[1742411386294,223.62,134.12,133.99,362.578]
[1742411386495,231.9395,134.12,134.0,38.73667888]
[1742411386692,7.4583,134.07,134.0,38.73667888]
[1742411386889,35.66,134.1,134.05,0.05122385]
[1742411387095,7.4568,134.09,134.01,35.66]
[1742411387394,0.05409889,134.09,134.06,7.51148167]
[1742411387597,0.05409889,134.09,134.06,0.05348167]
[1742411387898,7.4578,134.07,134.06,0.05348167]
[1742411389199,7.4592,134.05,134.0,46.19807888]
[1742411389498,35.66,134.1,134.0,46.19797888]
[1742411389697,35.66,134.1,134.0,38.73667888]
[1742411390400,0.04870577,134.06,134.0,38.73667888]
[1742411392403,0.04870577,134.06,134.05,7.459]
[1742411393103,0.04870577,134.06,134.03,74.39667888]
[1742411393104,0.04870577,134.06,134.03,81.85637888]
[1742411393305,0.04870577,134.06,134.03,35.66]
[1742411393492,0.04870577,134.06,134.0,74.39667888]
[1742411394208,0.04870577,134.06,134.02,7.4603]
[1742411395004,0.04870577,134.06,134.0,74.39667888]
[1742411395906,7.50740577,134.06,134.0,74.39667888]
[1742411396205,0.04870577,134.06,134.0,74.39667888]
[1742411396601,0.04870577,134.06,134.03,38.73667888]
[1742411396803,400.66,134.22,134.05,38.73667888]
[1742411397102,412.4296,134.22,134.1,38.73667888]
[1742411397304,7.4537,134.15,134.1,38.73667888]
[1742411397505,35.66,134.18,134.1,38.73667888]
[1742411397906,0.05309716,134.15,134.13,0.04913353]
[1742411398504,7.50689716,134.15,134.13,0.04913353]
[1742411398808,0.05309716,134.15,134.13,0.04913353]
[1742411399004,7.454,134.14,134.13,0.04913353]
[1742411399199,35.66,134.14,134.06,35.66]
[1742411399604,43.5764,134.14,134.06,35.66]
[1742411400005,7.4557,134.11,134.06,35.66]
[1742411400202,35.66,134.1,133.98,38.73667888]
[1742411400410,38.73667888,134.08,133.98,38.73667888]
[1742411400709,39.7277,134.09,133.98,38.73667888]
[1742411400902,0.05356268,134.04,134.01,38.73667888]
[1742411401803,35.64,134.12,134.01,38.73667888]
[1742411402011,74.37667888,134.12,134.0,35.64]
[1742411402405,35.64,134.12,134.03,38.73667888]
[1742411402607,74.37667888,134.12,134.01,74.37667888]
[1742411402802,0.05603514,134.08,134.05,0.05054783]
[1742411403005,35.64,134.08,133.98,74.37667888]
[1742411403204,223.72,134.07,133.98,74.37667888]
[1742411403901,35.64,134.12,134.01,38.73667888]
[1742411404106,227.7877,134.13,134.04,38.73667888]
[1742411404307,263.4277,134.13,134.04,38.73667888]
[1742411404811,7.4564,134.1,134.06,7.4581]
[1742411405107,7.4564,134.1,134.04,38.73667888]
[1742411405409,0.05504923,134.09,134.07,0.0496046]
[1742411406808,0.05504923,134.09,134.08,7.4573]
[1742411407008,7.795,134.14,134.07,42.82438348]
[1742411407715,43.435,134.14,134.07,0.0496046]
[1742411407909,7.4573,134.08,134.07,0.0496046]
[1742411409218,7.46,134.08,134.0,35.64]
[1742411409414,74.37667888,134.1,134.0,35.64]
[1742411409616,35.64,134.1,134.0,35.64]
[1742411410211,0.05028575,134.06,134.04,0.05196943]
[1742411411416,0.05028575,134.06,134.05,7.459]
[1742411411816,0.05028575,134.06,134.04,0.05196943]
[1742411413216,0.05028575,134.06,134.05,7.459]
[1742411413423,223.72,134.17,134.04,81.88864831]
[1742411413724,35.64,134.13,134.07,7.4578]
[1742411414023,35.64,134.13,134.04,35.64]
[1742411414325,7.4554,134.12,134.04,35.64]
[1742411414620,0.05611132,134.1,134.07,0.04950181]
[1742411415423,0.05611132,134.1,134.07,7.50730181]
[1742411415624,0.05611132,134.1,134.07,0.04950181]
[1742411416018,0.05611132,134.1,134.09,7.4567]
[1742411416214,365.0,134.21,134.09,7.46]
[1742411416427,7.4537,134.15,134.12,38.73667888]
[1742411416618,43.8147,134.22,134.12,38.73667888]
[1742411416817,43.8147,134.22,134.09,38.73667888]
[1742411417014,38.73667888,134.21,134.09,38.73667888]
[1742411417422,0.05155909,134.16,134.14,0.05344781]
[1742411417827,38.73667888,134.21,134.14,0.05344781]
[1742411418126,8.1747,134.22,134.15,7.4534]
[1742411418424,0.05274505,134.19,134.12,74.35667888]
[1742411418626,0.05274505,134.19,134.17,0.04700397]
[1742411418825,0.05274505,134.19,134.13,3.8421]
[1742411419026,0.05274505,134.19,134.17,0.05644682]
[1742411419324,7.50434505,134.19,134.17,0.05644682]
[1742411419717,0.05274505,134.19,134.17,0.05644682]
[1742411420426,0.05274505,134.19,134.17,7.50844682]
[1742411420623,0.05274505,134.19,134.17,0.05644682]
[1742411422927,0.05274505,134.19,134.17,7.50874682]
[1742411423127,0.05274505,134.19,134.17,0.05644682]
[1742411423422,7.50444505,134.19,134.17,0.05644682]
[1742411423621,0.05274505,134.19,134.17,0.05644682]
[1742411423826,0.05274505,134.19,134.11,35.6]
[1742411424027,0.05274505,134.19,134.12,7.4548]
[1742411424228,0.05274505,134.19,134.11,35.6]
[1742411424628,7.4539,134.15,134.08,78.55177888]
[1742411424928,35.6,134.16,134.1,0.05376062]
[1742411425122,0.04796659,134.13,134.1,0.05376062]
[1742411425325,0.04796659,134.13,134.12,0.05554678]
[1742411425525,0.04796659,134.13,134.04,11.5901]
[1742411425725,38.73667888,134.1,134.02,68.97308962]
[1742411425926,38.73667888,134.07,134.02,68.97308962]
[1742411426122,74.33667888,134.07,134.02,68.97308962]
[1742411426326,7.4587,134.06,134.02,38.66308962]
[1742411426631,0.05386741,134.05,134.03,0.0507123]